[Event "37th ECCC 2022"]
[Site "Mayrhofen"]
[Date "2022.10.06"]
[Round "4.1"]
[White "Anand, Viswanathan"]
[Black "Mamedyarov, Shakhriyar"]
[Result "1-0"]
[ECO "C83"]
[WhiteElo "2756"]
[BlackElo "2747"]
[Annotator "TA"]
[PlyCount "107"]
[EventDate "2022.10.03"]
[EventType "team-tourn"]
[EventCountry "AUT"]
[SourceTitle "playchess.com"]
[Source "ChessBase"]
[SourceQuality "1"]
[TimeControl "40/5400+30:1800+30"]

{[%evp 21,107,36,28,34,43,36,22,32,40,32,29,26,29,33,39,32,20,18,9,22,31,20,88,87,92,103,111,127,120,109,98,99,147,83,83,74,113,54,60,63,64,63,64,64,58,60,161,136,236,102,110,117,117,117,101,114,114,107,125,113,172,167,174,131,131,131,137,131,131,131,131,103,107,107,137,131,159,166,166,148,149,125,124,139,203,158,486,439]} 1. e4 {[%emt 0:00:03] Ramirez Alvarez,A} e5 {[%emt 0:00:03]} 2. Nf3 {[%emt 0:00:11]} Nc6 {[%emt 0:00:06]} 3. Bb5 {[%emt 0:00:06]} a6 {[%emt 0:00:04]} 4. Ba4 {[%emt 0:00:07]} Nf6 {[%emt 0:00:04]} 5. O-O {[%emt 0:00:18]} Nxe4 {[%emt 0:00:05]} 6. d4 {[%emt 0:00:08]} b5 {[%emt 0:00:03]} 7. Bb3 {[%emt 0:00:09]} d5 {[%emt 0:00:03]} 8. dxe5 {[%emt 0:00:10]} Be6 {[%emt 0:00:03]} 9. c3 {[%emt 0:00:42]} Be7 {[%emt 0:00:07]} 10. Nbd2 {[%emt 0:00:41]} Nc5 {[%emt 0:00:11]} 11. Bc2 {[%emt 0:00:36]} d4 {[%emt 0:00:05]} 12. Nb3 {[%emt 0:00:47][%cal Rb3d4] C83: Open Ruy Lopez: 9 c3 Be7.} d3 {[%emt 0:00:04]} 13. Bb1 {[%emt 0:00:06]} Nxb3 {[%emt 0:00:03]} 14. axb3 {[%emt 0:00:09] The position is equal.} Bf5 {[%emt 0:00:01]} 15. b4 {[%emt 0:00:32]} (15. Re1 O-O 16. Be3 Qd5 17. Bd4 d2 18. Re2 Bxb1 19. Rxb1 Nxd4 20. Nxd4 Bg5 21. g3 c5 22. Nf5 Qd3 23. Nd6 Qg6 24. h4 Bh6 25. h5 Qxh5 26. Rxd2 Qxe5 27. Rd5 Qf6 {½-½ (59) Anand,V (2768)-Mamedyarov,S (2801) Saint Louis 2018}) 15... O-O {[%emt 0:00:22]} 16. Re1 {[%emt 0:01:04] The old main line.} Qd7 {[%emt 0:00:02]} 17. h3 {[%emt 0:01:12]} Rfd8 {[%emt 0:00:06]} 18. g4 {[%emt 0:01:59]} Bg6 {[%emt 0:00:19]} 19. Bf4 {[%emt 0:03:13]} a5 {[%emt 0:04:39]} 20. bxa5 {[%emt 0:00:51]} Rxa5 21. Ba2 {[%emt 0:00:22] [#] Threatens to win with e6.} Rxa2 $146 {[%emt 0:06:41]} ({Predecessor:} 21... Rf8 22. b4 Ra4 23. Qd2 Nd8 24. Bg5 c5 25. Bxe7 Qxe7 26. bxc5 Qxc5 27. Nh4 Ne6 {½-½ (43) Caruana,F (2805)-Giri,A (2773) Stavanger 2015 CBM 167 [Ramirez Alvarez,A]}) 22. Rxa2 $16 {[%emt 0:00:10]} Qd5 {[%emt 0:00:08]} 23. Ra1 {[%emt 0:02:33]} b4 {[%emt 0:03:29]} 24. Nd2 {[%emt 0:05:53]} f6 {[%emt 0:07:46][%cal Rc6e5]} 25. exf6 {[%emt 0:09:06]} Bxf6 {[%emt 0:00:29]} 26. Rc1 {[%emt 0:00:10]} Rf8 {[%emt 0:35:25]} (26... h5 $142) 27. Be3 {[%emt 0:18:44]} (27. Qb3 $142 $1 {[%cal Rb3d5]} Qxb3 28. Nxb3) 27... bxc3 {[%emt 0:08:12]} 28. bxc3 {[%emt 0:00:05]} Bh4 {[%emt 0:05:53]} 29. Rf1 {[%emt 0:13:17]} (29. Rb1 $1 $16) 29... Ne5 {[%emt 0:11:05]} 30. f4 {[%emt 0:05:54][%cal Bf2f4,Bf4f5][%mdl 32]} Nc4 {[%emt 0:01:36]} 31. Nxc4 {[%emt 0:10:44]} Qxc4 {[%emt 0:00:05]} 32. f5 {[%emt 0:00:08]} Bf7 {[%emt 0:01:45]} 33. Rf4 $1 {[%emt 0:02:31]} Qd5 {[%emt 0:11:30]} (33... Qc6 $1 $14) 34. Rd4 $1 $18 {[%emt 0:03:15]} Qe5 {[%emt 0:00:16]} (34... Qc6 $16 {might work better.}) 35. Bf4 {[%emt 0:00:14]} (35. Qf3 $18 {is the precise move to win.}) 35... Qe2 $16 {[%emt 0:00:11]} 36. Qxe2 {[%emt 0:00:47]} dxe2 {[%emt 0:00:09]} 37. Re4 {[%emt 0:00:06]} e1=Q+ {[%emt 0:01:42]} 38. Rcxe1 {[%emt 0:03:46]} Bxe1 {[%emt 0:00:02]} 39. Rxe1 {[%emt 0:00:17][%mdl 4096] Endgame KRB-KRB} c6 {[%emt 0:00:02]} 40. Kf2 {[%emt 0:02:43]} h6 {[%emt 0:03:41]} (40... Bd5 $16 {was worth a try.} 41. Bd6 Rd8) 41. Re7 $18 {[%emt 0:32:56]} Bd5 {[%emt 0:30:40]} 42. Kg3 {[%emt 0:01:06]} Rf7 {[%emt 0:00:13]} 43. Re1 {[%emt 0:01:05] White is more active.} Kh7 {[%emt 0:02:43]} 44. Bd6 {[%emt 0:03:45]} Rd7 {[%emt 0:00:00]} 45. Bc5 {[%emt 0:00:00]} Bf7 {[%emt 0:00:00]} 46. Re3 {[%emt 0:00:00] Prevents Rd3.} Rd5 {[%emt 0:00:00]} 47. Bb6 {[%emt 0:00:00]} Kg8 {[%emt 0:00:00]} 48. Kf4 {[%emt 0:00:00]} Rb5 {[%emt 0:00:00]} 49. Bd4 {[%emt 0:00:00]} Rd5 {[%emt 0:00:00]} 50. Re1 {[%emt 0:00:00]} c5 {[%emt 0:00:00]} 51. Be3 {[%emt 0:00:00]} Rd3 {[%emt 0:00:00] [#]} 52. Rc1 $1 {[%emt 0:00:00]} Bb3 {[%emt 0:00:00]} (52... g5+ $16 53. fxg6 Bxg6) 53. h4 {[%emt 0:00:00]} c4 $2 {[%emt 0:00:00] [#]} (53... Rd1 $16 {is a better chance.} 54. Rxd1 Bxd1 55. Bxc5 Kf7) 54. Ra1 $1 {[%emt 0:00:00] Weighted Error Value: White=0.13 (very precise) /Black=0.23 (precise)} 1-0

[Event "37th ECCC 2022"]
[Site "Mayrhofen"]
[Date "2022.10.06"]
[Round "4.2"]
[White "Kryvoruchko, Yuriy"]
[Black "Rapport, Richard"]
[Result "1/2-1/2"]
[ECO "B30"]
[WhiteElo "2658"]
[BlackElo "2754"]
[Annotator "TA"]
[PlyCount "50"]
[EventDate "2022.10.03"]
[EventType "team-tourn"]
[EventCountry "AUT"]
[SourceTitle "playchess.com"]
[Source "ChessBase"]
[SourceQuality "1"]
[TimeControl "40/5400+30:1800+30"]

{[%evp 11,50,28,34,31,43,43,40,38,39,38,38,3,14,10,9,14,15,0,0,0,0,0,0,0,0,0,0,0,0,0,0,0,0,0,0,0,0,0,0,0,0]} 1. e4 {[%emt 0:00:04]} c5 {[%emt 0:00:41]} 2. Nf3 {[%emt 0:00:04]} Nc6 {[%emt 0:00:00]} 3. Bb5 {[%emt 0:00:24]} Nf6 4. Nc3 {[%emt 0:01:35]} Qc7 {[%emt 0:00:46]} 5. O-O {[%emt 0:00:52]} Nd4 {[%emt 0:00:19]} 6. Re1 {[%emt 0:01:19]} a6 {[%emt 0:00:12]} 7. Bf1 {[%emt 0:00:36] B30: Sicilian: 2...Nc6 3 Bb5, lines without ...g6.} e5 8. Nd5 {[%emt 0:03:30] 8.Bc4 is vanishing.} Nxf3+ {[%emt 0:02:45]} 9. Qxf3 {[%emt 0:00:07] White is slightly better.} Nxd5 {[%emt 0:00:04]} 10. exd5 {[%emt 0:00:04][%cal Ob2b4]} d6 {[%emt 0:00:10]} 11. c3 {[%emt 0:01:31]} Be7 {[%emt 0:03:06][%cal Bf8e7,Be7f6,Bf6e5][%mdl 32] The position is equal.} 12. d4 {[%emt 0:00:58]} O-O {[%emt 0:00:12]} 13. Qg3 {[%emt 0:07:16][%cal Rd4e5]} Bf6 {[%emt 0:06:26] [#]} 14. h4 $146 {[%emt 0:19:53]} ({Predecessor:} 14. dxe5 Bxe5 15. Bf4 f6 16. Bd3 Qf7 17. Qf3 Bd7 18. Bg3 Rae8 19. a4 Re7 20. a5 {0-1 (41) Shimanov,A (2581)-Zhigalko,S (2572) Chess.com INT 2021}) 14... cxd4 {[%emt 0:24:37]} 15. cxd4 {[%emt 0:00:04]} Qb6 {[%emt 0:00:46]} 16. dxe5 {[%emt 0:10:25]} Bxe5 {[%emt 0:03:51]} 17. Bf4 {[%emt 0:00:05]} f6 {[%emt 0:00:40]} 18. Rac1 $40 {[%emt 0:01:22][%mdl 128] Black needs to defend precisely.} Bf5 {[%emt 0:04:36]} 19. b3 {[%emt 0:01:06]} Rac8 {[%emt 0:01:47]} 20. Bxe5 {[%emt 0:02:42]} fxe5 {[%emt 0:01:27]} 21. Rxc8 {[%emt 0:03:06]} Rxc8 {[%emt 0:06:30]} 22. Qg5 {[%emt 0:01:33]} Rf8 {[%emt 0:00:44]} 23. Qd2 {[%emt 0:02:23]} Rc8 {[%emt 0:07:09] And now ...Rc2 would win.} 24. Qg5 {[%emt 0:00:18]} Rf8 {[%emt 0:01:00]} 25. Qd2 {[%emt 0:00:05]} Rc8 {[%emt 0:00:11] Weighted Error Value: White=0.03 (flawless) /Black=0.01 (flawless)} 1/2-1/2

[Event "37th ECCC 2022"]
[Site "Mayrhofen"]
[Date "2022.10.06"]
[Round "4.3"]
[White "Deac, Bogdan-Daniel"]
[Black "Kuzubov, Yuriy"]
[Result "1/2-1/2"]
[ECO "D37"]
[WhiteElo "2707"]
[BlackElo "2612"]
[Annotator "TA"]
[PlyCount "60"]
[EventDate "2022.10.03"]
[EventType "team-tourn"]
[EventCountry "AUT"]
[SourceTitle "playchess.com"]
[Source "ChessBase"]
[SourceQuality "1"]
[TimeControl "40/5400+30:1800+30"]

{[%evp 18,60,2,16,19,6,20,0,12,8,10,4,4,0,6,-7,-1,-17,-5,-1,-11,-11,-8,-9,-10,-8,-7,-8,-4,-8,0,0,-4,-3,0,0,0,0,0,0,0,0,0,0,0]} 1. d4 {[%emt 0:00:03]} Nf6 {[%emt 0:00:41]} 2. c4 {[%emt 0:00:03]} e6 {[%emt 0:00:06]} 3. Nc3 {[%emt 0:00:18]} d5 {[%emt 0:00:21]} 4. Nf3 {[%emt 0:00:15]} Be7 {[%emt 0:07:43]} 5. g3 {[%emt 0:01:04]} O-O {[%emt 0:00:49]} 6. Bg2 {[%emt 0:00:04]} dxc4 {[%emt 0:00:26]} 7. Ne5 {[%emt 0:00:16]} c5 {[%emt 0:00:59]} 8. dxc5 {[%emt 0:01:03]} Qxd1+ {[%emt 0:00:10]} 9. Nxd1 {[%emt 0:02:30]} Bxc5 {[%emt 0:00:10]} 10. Nxc4 {[%emt 0:16:43] The position is equal.} Nc6 {[%emt 0:01:08] E06: Closed Catalan: Early deviations.} 11. Nc3 {[%emt 0:00:25]} Rd8 {[%emt 0:06:43]} 12. Be3 {[%emt 0:07:36]} Bxe3 {[%emt 0:06:39]} 13. Nxe3 {[%emt 0:02:56] [#]} Bd7 $146 {[%emt 0:00:07]} ({Predecessor:} 13... Rb8 14. f4 e5 15. f5 Nd4 16. g4 b6 17. Rc1 Bb7 18. Bxb7 Rxb7 19. Kf2 h6 {½-½ (29) Giri,A (2793)-Topalov,V (2780) Moscow 2016}) 14. O-O-O {[%emt 0:02:27]} Rac8 {[%emt 0:01:36]} 15. Kb1 {[%emt 0:09:24]} Na5 {[%emt 0:01:18]} 16. h3 {[%emt 0:10:15]} Kf8 {[%emt 0:01:42]} 17. g4 {[%emt 0:02:50]} Bc6 {[%emt 0:02:24]} 18. Rxd8+ {[%emt 0:07:40]} Rxd8 {[%emt 0:02:41]} 19. Rd1 {[%emt 0:00:06]} Rxd1+ {[%emt 0:00:11]} 20. Ncxd1 {[%emt 0:00:02]} Bxg2 {[%emt 0:00:13]} 21. Nxg2 $11 {[%emt 0:00:02][%mdl 4096] Endgame KNN-KNN} Ke7 {[%emt 0:00:24]} 22. Kc2 {[%emt 0:00:29]} Nc6 {[%emt 0:00:29]} 23. Nc3 {[%emt 0:01:12]} h6 {[%emt 0:01:44]} 24. Kd2 {[%emt 0:02:34]} Ne8 {[%emt 0:02:12]} 25. b3 {[%emt 0:03:41]} Nd6 {[%emt 0:00:55]} 26. Nf4 {[%emt 0:02:36]} b6 {[%emt 0:03:00]} 27. f3 {[%emt 0:00:44]} f5 {[%emt 0:01:20]} 28. Ke3 {[%emt 0:00:50]} Kf7 {[%emt 0:02:42]} 29. Kf2 {[%emt 0:02:15]} Ke7 {[%emt 0:01:57]} 30. e3 {[%emt 0:00:37]} Ne5 {[%emt 0:00:55] A rather calm draw.  Weighted Error Value: White=0.04 (flawless) /Black=0.04 (flawless)} 1/2-1/2

[Event "37th ECCC 2022"]
[Site "Mayrhofen"]
[Date "2022.10.06"]
[Round "4.4"]
[White "Fedorchuk, Sergey A."]
[Black "Gukesh D"]
[Result "1-0"]
[ECO "B30"]
[WhiteElo "2619"]
[BlackElo "2732"]
[Annotator "TA"]
[PlyCount "59"]
[EventDate "2022.10.03"]
[EventType "team-tourn"]
[EventCountry "AUT"]
[SourceTitle "playchess.com"]
[Source "ChessBase"]
[SourceQuality "1"]
[TimeControl "40/5400+30:1800+30"]

{[%evp 10,59,20,21,38,38,40,36,35,30,25,0,0,6,2,8,8,6,5,0,0,0,7,0,39,28,48,22,33,36,32,20,102,109,113,108,117,114,183,183,183,181,180,164,277,241,376,380,429,420,391,361]} 1. e4 {[%emt 0:00:06]} c5 {[%emt 0:01:04]} 2. Nf3 {[%emt 0:00:38]} Nc6 {[%emt 0:01:03]} 3. Bb5 {[%emt 0:01:48]} e6 {[%emt 0:02:01]} 4. O-O {[%emt 0:07:52]} Nge7 {[%emt 0:00:28]} 5. d4 {[%emt 0:02:26]} cxd4 {[%emt 0:02:46]} 6. Nxd4 {[%emt 0:00:26]} Ng6 {[%emt 0:00:51] B30: Sicilian: 2...Nc6 3 Bb5, lines without ...g6.} 7. Be2 {[%emt 0:04:41]} Be7 {[%emt 0:00:27]} 8. c4 {[%emt 0:01:33]} O-O {[%emt 0:00:52] White is slightly better.} 9. Nc3 {[%emt 0:01:13]} b6 {[%emt 0:06:18] [#]} 10. Ndb5 $1 $146 {[%emt 0:04:14][%mdl 8] A relevant novelty.} ({Predecessor:} 10. Be3 Bb7 11. g3 Nxd4 12. Qxd4 Bf6 13. Qd3 Bxc3 14. bxc3 f5 15. exf5 Ne5 16. Qd6 Rxf5 {1-0 (27) Saric,I (2668)-Gelfand,B (2668) chess24.com INT 2022}) 10... a6 {[%emt 0:21:05]} 11. Nd6 {[%emt 0:07:50]} Qc7 {[%emt 0:00:19]} 12. Nxc8 {[%emt 0:01:36]} Raxc8 {[%emt 0:00:21]} 13. Be3 {[%emt 0:02:53]} Bc5 {[%emt 0:09:13]} 14. Qd2 {[%emt 0:01:53]} Nce5 {[%emt 0:03:55]} 15. Na4 {[%emt 0:09:09]} Bxe3 {[%emt 0:09:23]} (15... Nxc4 {with more complications.} 16. Bxc4 Bxe3 17. Qxe3 b5) 16. Qxe3 {[%emt 0:00:05]} Rb8 {[%emt 0:04:01]} 17. Rac1 {[%emt 0:03:27]} Nc6 {[%emt 0:09:43]} 18. g3 {[%emt 0:05:02]} Nge7 {[%emt 0:05:55]} 19. Rfd1 {[%emt 0:08:28]} e5 {[%emt 0:08:33]} 20. Qa3 {[%emt 0:16:51]} Rfe8 {[%emt 0:04:49] [#]} (20... Qd8 $11) 21. Qd6 $1 $16 {[%emt 0:01:28]} Qxd6 {[%emt 0:04:15]} 22. Rxd6 {[%emt 0:00:05]} Red8 {[%emt 0:00:55]} 23. Bg4 {[%emt 0:01:19] White has more active pieces.} Nc8 {[%emt 0:00:39]} (23... g6 $16) 24. Rxd7 $18 {[%emt 0:02:34]} Rxd7 {[%emt 0:00:01]} 25. Bxd7 {[%emt 0:00:07]} Nd4 {[%emt 0:00:02]} 26. Kg2 {[%emt 0:01:44] Bxc8 is the strong threat.} Nd6 {[%emt 0:00:54]} (26... Na7 $142 27. c5 bxc5 28. Rxc5 f6) 27. Nxb6 {[%emt 0:04:15] Strongly threatening c5.} Nxe4 {[%emt 0:00:01]} (27... Ne2 {keeps fighting.} 28. Rd1 Nxe4) 28. c5 {[%emt 0:00:19][%cal Oc5c6] [#] aiming for c6!} Kf8 {[%emt 0:01:09]} 29. b4 {[%emt 0:01:31]} Ke7 {[%emt 0:00:51]} 30. Re1 {[%emt 0:01:11] Weighted Error Value: White=0.03 (flawless) /Black=0.23 (precise)} 1-0

[Event "37th ECCC 2022"]
[Site "Mayrhofen"]
[Date "2022.10.06"]
[Round "4.5"]
[White "Sargissian, Gabriel"]
[Black "Wagner, Dennis"]
[Result "1/2-1/2"]
[ECO "D85"]
[WhiteElo "2711"]
[BlackElo "2570"]
[Annotator "TA"]
[PlyCount "70"]
[EventDate "2022.10.03"]
[EventType "team-tourn"]
[EventCountry "AUT"]
[SourceTitle "playchess.com"]
[Source "ChessBase"]
[SourceQuality "1"]
[TimeControl "40/5400+30:1800+30"]

{[%evp 12,70,27,15,35,0,0,0,0,0,0,0,0,-12,-12,-18,0,-37,-28,-33,0,-29,0,-14,-15,-17,-5,-16,-14,-22,-28,-20,-2,-12,-6,-6,0,0,0,-8,-8,-8,0,0,0,0,0,0,0,0,0,0,0,0,0,0,0,0,0,0,0]} 1. d4 {[%emt 0:00:10]} Nf6 {[%emt 0:00:05]} 2. c4 {[%emt 0:00:18]} g6 {[%emt 0:00:06]} 3. Nc3 {[%emt 0:04:30]} d5 {[%emt 0:00:29]} 4. cxd5 {[%emt 0:00:24]} Nxd5 {[%emt 0:00:06]} 5. e4 {[%emt 0:00:12]} Nxc3 {[%emt 0:00:06]} 6. bxc3 {[%emt 0:00:05]} Bg7 {[%emt 0:00:08]} 7. Qa4+ {[%emt 0:00:51]} Qd7 {[%emt 0:00:18] D85: Exchange Grünfeld: Unusual White 7th moves and lines with 7 Nf3.} 8. Qa3 $1 {[%emt 0:11:34][%mdl 4] is recently more successful than 8.Qb3.} (8. Bb5 $5 {[%cal Rb5d7]} c6 9. Bd3 $14) 8... b6 {[%emt 0:00:07]} 9. Nf3 {[%emt 0:01:41]} O-O {[%emt 0:02:42]} 10. Be3 {[%emt 0:05:16]} Bb7 {[%emt 0:00:28]} 11. Bd3 {[%emt 0:01:31]} Qd6 {[%emt 0:00:49]} 12. Qa4 {[%emt 0:06:45] [#]} c5 $146 {[%emt 0:02:15]} ({Predecessor:} 12... e5 13. Rd1 exd4 14. cxd4 Qe7 15. e5 Nd7 16. Bb5 Rad8 17. O-O Bxf3 18. gxf3 c5 19. Bxd7 Rxd7 20. dxc5 Rxd1 21. Rxd1 bxc5 22. Qc6 {½-½ (22) Franco Alonso,A (2490)-Nava Pereda,C (2281) Mondragon 2008}) 13. O-O {[%emt 0:02:28]} Nc6 {[%emt 0:14:06]} 14. Rad1 {[%emt 0:04:14]} cxd4 {[%emt 0:05:19]} 15. cxd4 {[%emt 0:00:06]} e6 {[%emt 0:08:27] Prevents d5.} (15... Qb4 $5 {[%cal Rb4a4]} 16. Qb3 Qxb3 17. axb3 Nb4 $11) 16. h4 {[%emt 0:01:06]} Rfc8 {[%emt 0:24:28]} 17. Rb1 {[%emt 0:17:12] [#]} Nxd4 $1 {[%emt 0:08:15]} 18. Bxd4 {[%emt 0:07:57] Rfd1 is the strong threat.} ({Much weaker is} 18. Nxd4 e5 19. Qb4 Qd8 $17) 18... e5 {[%emt 0:10:03]} 19. Ba6 {[%emt 0:03:31]} Bxa6 {[%emt 0:00:22]} 20. Bxe5 $1 {[%emt 0:00:17]} Bxe5 {[%emt 0:07:57]} 21. Qxa6 {[%emt 0:00:09]} Bf6 {[%emt 0:04:27] The position is equal.} 22. Rbc1 {[%emt 0:03:23]} Rxc1 {[%emt 0:04:55]} 23. Rxc1 {[%emt 0:00:06]} Qf4 {[%emt 0:00:05][%csl LRc1,LRe4,LRh4]} 24. Rc8+ {[%emt 0:07:26]} Rxc8 {[%emt 0:00:01]} 25. Qxc8+ $11 {[%emt 0:00:08][%mdl 4096] Endgame KQB-KQN} Kg7 {[%emt 0:00:03]} 26. Qb7 {[%emt 0:01:17]} Bxh4 {[%emt 0:05:03]} (26... Qc1+ {with more complications.} 27. Kh2 Qb2 28. Qxa7 Qxf2 29. Qc7 Bb2) 27. Nxh4 {[%emt 0:00:23]} Qxh4 {[%emt 0:00:04]} 28. Qxa7 {[%emt 0:00:07]} Qxe4 {[%emt 0:00:21] [#] White must now prevent ...Qe1+.} 29. Qxb6 {[%emt 0:00:12] KQ-KQ} Qe1+ {[%emt 0:00:12]} 30. Kh2 {[%emt 0:00:22]} Qe5+ {[%emt 0:00:04]} 31. g3 {[%emt 0:00:28]} Qh5+ {[%emt 0:00:05]} 32. Kg1 {[%emt 0:00:14]} Qd1+ {[%emt 0:00:04]} 33. Kh2 {[%emt 0:00:14]} Qh5+ {[%emt 0:00:11]} 34. Kg1 {[%emt 0:00:09]} Qd1+ {[%emt 0:00:03]} 35. Kh2 {[%emt 0:00:06]} Qh5+ {[%emt 0:00:05] Weighted Error Value: White=0.08 (flawless) /Black=0.05 (flawless)} 1/2-1/2

[Event "37th ECCC 2022"]
[Site "Mayrhofen"]
[Date "2022.10.06"]
[Round "4.6"]
[White "Maze, Sebastien"]
[Black "Lupulescu, Constantin"]
[Result "1/2-1/2"]
[ECO "B40"]
[WhiteElo "2530"]
[BlackElo "2603"]
[Annotator "TA"]
[PlyCount "132"]
[EventDate "2022.10.03"]
[EventType "team-tourn"]
[EventCountry "AUT"]
[SourceTitle "playchess.com"]
[Source "ChessBase"]
[SourceQuality "1"]
[TimeControl "40/5400+30:1800+30"]

{[%evp 10,132,8,0,10,0,0,0,0,0,1,0,0,-29,-28,-43,-31,-27,-33,-29,8,-45,-42,-42,-43,-67,-77,-70,-72,-68,-48,-48,-48,-62,-62,-62,-62,-108,-48,-61,-61,-59,-59,-62,-62,-62,-61,-61,-59,-59,-49,-68,-49,-61,-60,-69,0,-61,0,-73,-68,-83,-83,-83,-83,-83,-83,-83,-83,-98,-98,-98,-98,-98,0,-98,0,-98,-98,-98,-98,-98,-98,-98,-98,-98,-98,-98,-98,-98,-98,-122,-122,-122,-122,-122,-122,-122,-122,-122,-95,-95,-95,-95,-95,-95,-27,-95,-95,-95,-35,-29,0,0,0,0,0,0,0,0,0,0,0,0,0]} 1. e4 {[%emt 0:00:03]} c5 {[%emt 0:00:03]} 2. Nf3 {[%emt 0:00:06]} e6 {[%emt 0:00:03]} 3. Nc3 {[%emt 0:03:23]} Nc6 {[%emt 0:00:16]} 4. Bb5 {[%emt 0:00:49]} Nd4 {[%emt 0:01:01]} 5. O-O {[%emt 0:09:04]} a6 {[%emt 0:01:46]} 6. Bd3 {[%emt 0:00:54]} Nc6 {[%emt 0:00:30] B30: Sicilian: 2...Nc6 3 Bb5, lines without ...g6.} 7. b3 {[%emt 0:13:45]} d6 {[%emt 0:08:54]} 8. Bb2 {[%emt 0:00:33]} Be7 {[%emt 0:05:20]} 9. Re1 {[%emt 0:05:36][%cal Oc3d5]} Bf6 {[%emt 0:02:28] [#]} 10. Na4 $146 {[%emt 0:03:43]} (10. e5 {looks sharper.} Nxe5 11. Nxe5 Bxe5 12. Rxe5 dxe5 13. Qh5) ({Predecessor:} 10. e5 Nxe5 11. Nxe5 Bxe5 12. Rxe5 dxe5 13. Qg4 Nf6 14. Qxg7 Rg8 15. Qh6 Bd7 16. Ne4 Nxe4 17. Bxe4 {½-½ (37) Jones,G (2670)-Praggnanandhaa,R (2608) chess24.com INT 2021}) 10... b5 {[%emt 0:04:30]} 11. Bxf6 {[%emt 0:00:47]} (11. e5 $5 {[%cal Re5f6]} bxa4 12. exf6 Nxf6 13. Ng5 $11 (13. bxa4 e5 $11)) 11... Nxf6 {[%emt 0:00:10]} 12. Nc3 {[%emt 0:00:32]} e5 {[%emt 0:03:59]} 13. a4 {[%emt 0:04:48]} b4 {[%emt 0:00:28]} 14. Ne2 {[%emt 0:00:06]} h5 {[%emt 0:15:16][%cal Bh7h5,Bh5h4][%mdl 32]} 15. Bc4 {[%emt 0:08:40]} (15. h3 $11) 15... Na5 $15 {[%emt 0:05:52]} 16. d3 {[%emt 0:00:57]} h4 {[%emt 0:08:10]} 17. h3 {[%emt 0:05:39]} Nxc4 {[%emt 0:01:50]} 18. bxc4 {[%emt 0:01:40]} a5 {[%emt 0:01:10][%cal Og7g5]} 19. Nh2 {[%emt 0:01:42]} g5 {[%emt 0:03:04]} 20. f3 {[%emt 0:00:21] Prevents g4.} Nh5 {[%emt 0:01:37]} 21. Ng4 {[%emt 0:00:33]} Kf8 {[%emt 0:01:53]} 22. Nc1 {[%emt 0:02:51]} Bd7 {[%emt 0:03:11]} 23. Nb3 {[%emt 0:00:04] [#]} (23. Ne3 $15 {should be considered.}) 23... Kg7 {[%emt 0:06:29]} (23... Qe8 $1 $17) 24. Ra2 {[%emt 0:04:30]} Qe7 {[%emt 0:01:19]} 25. Nd2 {[%emt 0:00:12]} Nf4 {[%emt 0:01:31]} 26. Nf1 {[%emt 0:02:33]} Rhb8 {[%emt 0:01:37]} 27. Nfe3 {[%emt 0:01:08]} Kg6 {[%emt 0:01:46]} 28. Qb1 $1 {[%emt 0:00:46]} Rb6 {[%emt 0:00:32]} 29. Qb3 {[%emt 0:00:29]} Rab8 {[%emt 0:00:28]} 30. Raa1 {[%emt 0:01:49]} Qe8 {[%emt 0:01:02]} 31. Ra2 {[%emt 0:08:37]} R6b7 {[%emt 0:00:14]} 32. Raa1 {[%emt 0:00:08]} Rb6 {[%emt 0:02:31]} 33. Ra2 $1 {[%emt 0:01:57]} R6b7 {[%emt 0:00:14]} 34. Raa1 {[%emt 0:00:05]} Ne6 {[%emt 0:01:57]} 35. Nf5 {[%emt 0:00:18]} Nd4 {[%emt 0:00:31]} 36. Nxd4 {[%emt 0:00:06]} cxd4 {[%emt 0:00:28]} 37. Kh2 {[%emt 0:00:59]} Rc7 {[%emt 0:01:36]} 38. Rg1 {[%emt 0:00:24]} Qe7 {[%emt 0:01:00]} 39. Rge1 {[%emt 0:01:15]} Rcb7 {[%emt 0:00:30]} 40. Re2 {[%emt 0:01:21]} Kg7 {[%emt 0:01:38]} 41. Rae1 {[%emt 0:31:59]} Kg6 {[%emt 0:31:14]} ({Better is} 41... Rc8 $17) 42. Kg1 {[%emt 0:00:17]} (42. Ra1 $1 $11) 42... Kg7 {[%emt 0:00:08][%cal Bg6g7,Bg7f8,Bf8e8,Be8d8,Bd8c7,Bc7b6][%mdl 32]} 43. Kh2 $1 {[%emt 0:00:04]} Kf8 {[%emt 0:00:19]} 44. Kg1 {[%emt 0:03:13]} Ke8 {[%emt 0:01:14]} 45. Ra1 {[%emt 0:01:19]} Kd8 {[%emt 0:00:24]} 46. Kf1 {[%emt 0:00:56]} Kc7 {[%emt 0:00:20]} 47. Ke1 {[%emt 0:00:05]} Kb6 {[%emt 0:00:31]} 48. Kd2 {[%emt 0:00:22]} Rc7 {[%emt 0:01:43]} 49. Ke1 {[%emt 0:01:37]} Rbc8 {[%emt 0:06:17]} 50. Kf2 {[%emt 0:00:16]} f5 {[%emt 0:01:40]} 51. exf5 {[%emt 0:00:14]} Bxf5 {[%emt 0:00:05]} 52. Kg1 {[%emt 0:00:49]} Bxg4 {[%emt 0:00:00]} 53. fxg4 {[%emt 0:00:00]} Rf8 {[%emt 0:00:00]} 54. Rf1 {[%emt 0:00:00]} Rf4 {[%emt 0:00:00]} 55. Rxf4 {[%emt 0:00:00]} gxf4 $17 {[%emt 0:00:00][%mdl 4096] Endgame KQR-KQR} 56. Qb1 {[%emt 0:00:00] [#]} Qe8 $1 {[%emt 0:00:00]} 57. Qa1 {[%emt 0:00:00] Strongly threatening Qxd4+.} Kc5 {[%emt 0:00:00]} ({Black should try} 57... Qc6 $17) 58. Re4 {[%emt 0:00:00]} (58. Qe1 $1 $11 {remains equal.}) 58... Qc6 {[%emt 0:00:00]} 59. Kf2 {[%emt 0:00:00]} Qb6 {[%emt 0:00:00]} (59... Rc8 $17) 60. Qe1 {[%emt 0:00:00][%cal Oe4e5]} b3 {[%emt 0:01:26]} 61. cxb3 {[%emt 0:00:00] The position is equal.} Qb4 {[%emt 0:00:15]} 62. Qd1 {[%emt 0:00:00]} Rb7 {[%emt 0:06:01] aiming for ...Qc3.} 63. Qf3 {[%emt 0:00:00] Black must now prevent Re2.} Rb8 {[%emt 0:00:20]} ({Much less strong is} 63... Qxb3 64. Re2 Kb6 65. Qd5 $16) 64. g5 {[%emt 0:00:35]} Qxb3 {[%emt 0:00:18]} 65. g6 {[%emt 0:00:36] g7 is the strong threat. Chess con chili.} Qb7 {[%emt 0:01:05]} 66. Qh5 {[%emt 0:01:26] Threatens to win with Qf5.} Qb1 {[%emt 0:01:53] Weighted Error Value: White=0.09 (flawless) /Black=0.15 (very precise)} 1/2-1/2